Workbook

Sheet Activity 1-2
A1: Bernoulli differential equation
D4: 𝜀 = | E4: =Z4/100-1 -> 0.5 | Z4: 150
B6: Exact | C6: 1st-order | D6: 2nd-oder | E6: 3rd-order
A7: x | B7: y(x) | C7: y(x) | D7: y(x) | E7: y(x)
A8: 0.00 | B8: =1/SQRT((1-$E$4)*EXP(2*A8)+$E$4) -> 1.0000 | C8: =EXP(-A8)+$E$4*(EXP(-A8)-EXP(-3*A8))/2 -> 1.0000 | D8: =EXP(-A8)+$E$4*(EXP(-A8)-EXP(-3*A8))/2+$E$4^2*(3*EXP(-A8)-6*EXP(-3*A8)+3*EXP(-5*A8))/8 -> 1.0000 | E8: =EXP(-A8)+$E$4*(EXP(-A8)-EXP(-3*A8))/2+$E$4^2*(3*EXP(-A8)-6*EXP(-3*A8)+3*EXP(-5*A8))/8+$E$4^3*(5*EXP(-A8)-15*EXP(-3*A8)+15*EXP(-5*A8)-5*EXP(-7*A8))/16 -> 1.0000
A9: 0.05 | B9: =1/SQRT((1-$E$4)*EXP(2*A9)+$E$4) -> 0.9747 | C9: =EXP(-A9)+$E$4*(EXP(-A9)-EXP(-3*A9))/2 -> 0.9739 | D9: =EXP(-A9)+$E$4*(EXP(-A9)-EXP(-3*A9))/2+$E$4^2*(3*EXP(-A9)-6*EXP(-3*A9)+3*EXP(-5*A9))/8 -> 0.9747 | E9: =EXP(-A9)+$E$4*(EXP(-A9)-EXP(-3*A9))/2+$E$4^2*(3*EXP(-A9)-6*EXP(-3*A9)+3*EXP(-5*A9))/8+$E$4^3*(5*EXP(-A9)-15*EXP(-3*A9)+15*EXP(-5*A9)-5*EXP(-7*A9))/16 -> 0.9747
A10: 0.10 | B10: 0.9489 | C10: 0.9458 | D10: 0.9486 | E10: 0.9488
A11: 0.15 | B11: 0.9226 | C11: 0.9165 | D11: 0.9219 | E11: 0.9225
A12: 0.20 | B12: 0.8959 | C12: 0.8862 | D12: 0.8946 | E12: 0.8957
A13: 0.25 | B13: 0.8690 | C13: 0.8554 | D13: 0.8667 | E13: 0.8686
A14: 0.30 | B14: 0.8418 | C14: 0.8244 | D14: 0.8385 | E14: 0.8412
A15: 0.35 | B15: 0.8146 | C15: 0.7934 | D15: 0.8101 | E15: 0.8136
A16: 0.40 | B16: 0.7874 | C16: 0.7626 | D16: 0.7817 | E16: 0.7860
A17: 0.45 | B17: 0.7603 | C17: 0.7322 | D17: 0.7533 | E17: 0.7585
A18: 0.50 | B18: 0.7334 | C18: 0.7024 | D18: 0.7251 | E18: 0.7311
A19: 0.55 | B19: 0.7067 | C19: 0.6732 | D19: 0.6972 | E19: 0.7039
A20: 0.60 | B20: 0.6804 | C20: 0.6447 | D20: 0.6698 | E20: 0.6771
A21: 0.65 | B21: 0.6545 | C21: 0.6170 | D21: 0.6429 | E21: 0.6507
A22: 0.70 | B22: 0.6290 | C22: 0.5901 | D22: 0.6165 | E22: 0.6248
A23: 0.75 | B23: 0.6040 | C23: 0.5641 | D23: 0.5908 | E23: 0.5995
A24: 0.80 | B24: 0.5796 | C24: 0.5390 | D24: 0.5658 | E24: 0.5747
A25: 0.85 | B25: 0.5558 | C25: 0.5147 | D25: 0.5415 | E25: 0.5506
A26: 0.90 | B26: 0.5326 | C26: 0.4914 | D26: 0.5180 | E26: 0.5272
A27: 0.95 | B27: 0.5101 | C27: 0.4690 | D27: 0.4952 | E27: 0.5045
A28: 1.00 | B28: 0.4883 | C28: 0.4474 | D28: 0.4732 | E28: 0.4825
A29: 1.05 | B29: 0.4671 | C29: 0.4267 | D29: 0.4520 | E29: 0.4612
A30: 1.10 | B30: 0.4467 | C30: 0.4069 | D30: 0.4315 | E30: 0.4407
A31: 1.15 | B31: 0.4269 | C31: 0.3879 | D31: 0.4119 | E31: 0.4209
A32: 1.20 | B32: 0.4079 | C32: 0.3697 | D32: 0.3930 | E32: 0.4019
A33: 1.25 | B33: 0.3895 | C33: 0.3523 | D33: 0.3749 | E33: 0.3835
A34: 1.30 | B34: 0.3719 | C34: 0.3356 | D34: 0.3575 | E34: 0.3659
A35: 1.35 | B35: 0.3549 | C35: 0.3197 | D35: 0.3408 | E35: 0.3491
A36: 1.40 | B36: 0.3386 | C36: 0.3045 | D36: 0.3249 | E36: 0.3329
A37: 1.45 | B37: 0.3230 | C37: 0.2900 | D37: 0.3096 | E37: 0.3174
A38: 1.50 | B38: 0.3080 | C38: 0.2761 | D38: 0.2950 | E38: 0.3025
A39: 1.55 | B39: 0.2936 | C39: 0.2629 | D39: 0.2811 | E39: 0.2883
A40: 1.60 | B40: 0.2799 | C40: 0.2503 | D40: 0.2677 | E40: 0.2747
A41: 1.65 | B41: 0.2667 | C41: 0.2383 | D41: 0.2550 | E41: 0.2617
A42: 1.70 | B42: 0.2541 | C42: 0.2268 | D42: 0.2428 | E42: 0.2493
A43: 1.75 | B43: 0.2421 | C43: 0.2159 | D43: 0.2312 | E43: 0.2374
A44: 1.80 | B44: 0.2306 | C44: 0.2055 | D44: 0.2202 | E44: 0.2261
A45: 1.85 | B45: 0.2197 | C45: 0.1956 | D45: 0.2096 | E45: 0.2153
A46: 1.90 | B46: 0.2092 | C46: 0.1861 | D46: 0.1995 | E46: 0.2050
A47: 1.95 | B47: 0.1992 | C47: 0.1771 | D47: 0.1899 | E47: 0.1952
A48: 2.00 | B48: 0.1897 | C48: 0.1685 | D48: 0.1808 | E48: 0.1858

Sheet Activity 3
A1: Second-order differential equation
D4: 𝜀 = | E4: =Z4/100-1 -> 0.2 | S4: Runge-Kutta step size | V4: =A9-A8 -> 0.05 | Z4: 120
B6: Exact | C6: Numerical | T6: Increments for | X6: Increments for
A7: x | B7: y(x) | C7: y(x) | N7: x
A8: 0.00 | B8: =(1+$E$4)*(1-EXP(-A8))-$E$4*A8 -> 0.0000 | C8: =O8 -> 0.0000 | N8: =A8 -> 0.00 | O8: 0.0000 | P8: 1.0000 | Q8: IC | S8: =$V$4*P8 -> 0.0500 | T8: =$V$4*(P8+S8/2) -> 0.0513 | U8: =$V$4*(P8+T8/2) -> 0.0513 | V8: =$V$4*(P8+U8) -> 0.0526 | W8: =$V$4*(-P8-$E$4) -> -0.0600 | X8: =$V$4*(-P8-$E$4+W8/2) -> -0.0615 | Y8: =$V$4*(-P8-$E$4+X8/2) -> -0.0615 | Z8: =$V$4*(-P8-$E$4+Y8) -> -0.0631
A9: 0.05 | B9: =(1+$E$4)*(1-EXP(-A9))-$E$4*A9 -> 0.0485 | C9: =O9 -> 0.0513 | N9: =A9 -> 0.05 | O9: =O8+(S8+2*T8+2*U8+V8)/6 -> 0.0513 | P9: =P8+(W8+2*X8+2*Y8+Z8)/6 -> 0.9385 | S9: =$V$4*P9 -> 0.0469 | T9: =$V$4*(P9+S9/2) -> 0.0481 | U9: =$V$4*(P9+T9/2) -> 0.0481 | V9: =$V$4*(P9+U9) -> 0.0493 | W9: =$V$4*(-P9-$E$4) -> -0.0569 | X9: =$V$4*(-P9-$E$4+W9/2) -> -0.0583 | Y9: =$V$4*(-P9-$E$4+X9/2) -> -0.0584 | Z9: =$V$4*(-P9-$E$4+Y9) -> -0.0598
A10: 0.10 | B10: 0.0942 | C10: 0.0994 | N10: =A10 -> 0.10 | O10: =O9+(S9+2*T9+2*U9+V9)/6 -> 0.0994 | P10: =P9+(W9+2*X9+2*Y9+Z9)/6 -> 0.8801 | S10: =$V$4*P10 -> 0.0440 | T10: =$V$4*(P10+S10/2) -> 0.0451 | U10: =$V$4*(P10+T10/2) -> 0.0451 | V10: =$V$4*(P10+U10) -> 0.0463 | W10: =$V$4*(-P10-$E$4) -> -0.0540 | X10: =$V$4*(-P10-$E$4+W10/2) -> -0.0554 | Y10: =$V$4*(-P10-$E$4+X10/2) -> -0.0554 | Z10: =$V$4*(-P10-$E$4+Y10) -> -0.0568
A11: 0.15 | B11: 0.1372 | C11: 0.1445 | N11: 0.15 | O11: 0.1445 | P11: 0.8247 | S11: =$V$4*P11 -> 0.0412 | T11: =$V$4*(P11+S11/2) -> 0.0423 | U11: =$V$4*(P11+T11/2) -> 0.0423 | V11: =$V$4*(P11+U11) -> 0.0434 | W11: =$V$4*(-P11-$E$4) -> -0.0512 | X11: =$V$4*(-P11-$E$4+W11/2) -> -0.0525 | Y11: =$V$4*(-P11-$E$4+X11/2) -> -0.0525 | Z11: =$V$4*(-P11-$E$4+Y11) -> -0.0539
A12: 0.20 | B12: 0.1775 | C12: 0.1868 | N12: 0.20 | O12: 0.1868 | P12: 0.7722 | S12: 0.0386 | T12: 0.0396 | U12: 0.0396 | V12: 0.0406 | W12: -0.0486 | X12: -0.0498 | Y12: -0.0499 | Z12: -0.0511
A13: 0.25 | B13: 0.2154 | C13: 0.2264 | N13: 0.25 | O13: 0.2264 | P13: 0.7223 | S13: 0.0361 | T13: 0.0370 | U13: 0.0370 | V13: 0.0380 | W13: -0.0461 | X13: -0.0473 | Y13: -0.0473 | Z13: -0.0485
A14: 0.30 | B14: 0.2510 | C14: 0.2634 | N14: 0.30 | O14: 0.2634 | P14: 0.6751 | S14: 0.0338 | T14: 0.0346 | U14: 0.0346 | V14: 0.0355 | W14: -0.0438 | X14: -0.0448 | Y14: -0.0449 | Z14: -0.0460
A15: 0.35 | B15: 0.2844 | C15: 0.2980 | N15: 0.35 | O15: 0.2980 | P15: 0.6302 | S15: =$V$4*P15 -> 0.0315 | T15: =$V$4*(P15+S15/2) -> 0.0323 | U15: =$V$4*(P15+T15/2) -> 0.0323 | V15: =$V$4*(P15+U15) -> 0.0331 | W15: =$V$4*(-P15-$E$4) -> -0.0415 | X15: =$V$4*(-P15-$E$4+W15/2) -> -0.0425 | Y15: =$V$4*(-P15-$E$4+X15/2) -> -0.0426 | Z15: =$V$4*(-P15-$E$4+Y15) -> -0.0436
A16: 0.40 | B16: 0.3156 | C16: 0.3303 | N16: 0.40 | O16: 0.3303 | P16: 0.5876 | S16: 0.0294 | T16: 0.0301 | U16: 0.0301 | V16: 0.0309 | W16: -0.0394 | X16: -0.0404 | Y16: -0.0404 | Z16: -0.0414
A17: 0.45 | B17: 0.3448 | C17: 0.3605 | N17: 0.45 | O17: 0.3605 | P17: 0.5472 | S17: 0.0274 | T17: 0.0280 | U17: 0.0281 | V17: 0.0288 | W17: -0.0374 | X17: -0.0383 | Y17: -0.0383 | Z17: -0.0393
A18: 0.50 | B18: 0.3722 | C18: 0.3885 | N18: 0.50 | O18: 0.3885 | P18: 0.5089 | S18: 0.0254 | T18: 0.0261 | U18: 0.0261 | V18: 0.0268 | W18: -0.0354 | X18: -0.0363 | Y18: -0.0364 | Z18: -0.0373
A19: 0.55 | B19: 0.3977 | C19: 0.4146 | N19: 0.55 | O19: 0.4146 | P19: 0.4726 | S19: 0.0236 | T19: 0.0242 | U19: 0.0242 | V19: 0.0248 | W19: -0.0336 | X19: -0.0345 | Y19: -0.0345 | Z19: -0.0354
A20: 0.60 | B20: 0.4214 | C20: 0.4389 | N20: 0.60 | O20: 0.4389 | P20: 0.4381 | S20: 0.0219 | T20: 0.0225 | U20: 0.0225 | V20: 0.0230 | W20: -0.0319 | X20: -0.0327 | Y20: -0.0327 | Z20: -0.0335
A21: 0.65 | B21: 0.4435 | C21: 0.4613 | N21: 0.65 | O21: 0.4613 | P21: 0.4054 | S21: 0.0203 | T21: 0.0208 | U21: 0.0208 | V21: 0.0213 | W21: -0.0303 | X21: -0.0310 | Y21: -0.0310 | Z21: -0.0318
A22: 0.70 | B22: 0.4641 | C22: 0.4821 | N22: 0.70 | O22: 0.4821 | P22: 0.3743 | S22: 0.0187 | T22: 0.0192 | U22: 0.0192 | V22: 0.0197 | W22: -0.0287 | X22: -0.0294 | Y22: -0.0295 | Z22: -0.0302
A23: 0.75 | B23: 0.4832 | C23: 0.5013 | N23: 0.75 | O23: 0.5013 | P23: 0.3449 | S23: 0.0172 | T23: 0.0177 | U23: 0.0177 | V23: 0.0181 | W23: -0.0272 | X23: -0.0279 | Y23: -0.0279 | Z23: -0.0286
A24: 0.80 | B24: 0.5008 | C24: 0.5190 | N24: 0.80 | O24: 0.5190 | P24: 0.3170 | S24: 0.0158 | T24: 0.0162 | U24: 0.0163 | V24: 0.0167 | W24: -0.0258 | X24: -0.0265 | Y24: -0.0265 | Z24: -0.0272
A25: 0.85 | B25: 0.5171 | C25: 0.5352 | N25: 0.85 | O25: 0.5352 | P25: 0.2905 | S25: 0.0145 | T25: 0.0149 | U25: 0.0149 | V25: 0.0153 | W25: -0.0245 | X25: -0.0251 | Y25: -0.0252 | Z25: -0.0258
A26: 0.90 | B26: 0.5321 | C26: 0.5501 | N26: 0.90 | O26: 0.5501 | P26: 0.2653 | S26: 0.0133 | T26: 0.0136 | U26: 0.0136 | V26: 0.0139 | W26: -0.0233 | X26: -0.0238 | Y26: -0.0239 | Z26: -0.0245
A27: 0.95 | B27: 0.5459 | C27: 0.5637 | N27: 0.95 | O27: 0.5637 | P27: 0.2415 | S27: 0.0121 | T27: 0.0124 | U27: 0.0124 | V27: 0.0127 | W27: -0.0221 | X27: -0.0226 | Y27: -0.0226 | Z27: -0.0232
A28: 1.00 | B28: 0.5585 | C28: 0.5761 | N28: 1.00 | O28: 0.5761 | P28: 0.2188 | S28: 0.0109 | T28: 0.0112 | U28: 0.0112 | V28: 0.0115 | W28: -0.0209 | X28: -0.0215 | Y28: -0.0215 | Z28: -0.0220
A29: 1.05 | B29: 0.5701 | C29: 0.5873 | N29: 1.05 | O29: 0.5873 | P29: 0.1973 | S29: 0.0099 | T29: 0.0101 | U29: 0.0101 | V29: 0.0104 | W29: -0.0199 | X29: -0.0204 | Y29: -0.0204 | Z29: -0.0209
A30: 1.10 | B30: 0.5806 | C30: 0.5974 | N30: 1.10 | O30: 0.5974 | P30: 0.1770 | S30: 0.0088 | T30: 0.0091 | U30: 0.0091 | V30: 0.0093 | W30: -0.0188 | X30: -0.0193 | Y30: -0.0193 | Z30: -0.0198
A31: 1.15 | B31: 0.5900 | C31: 0.6065 | N31: 1.15 | O31: 0.6065 | P31: 0.1576 | S31: 0.0079 | T31: 0.0081 | U31: 0.0081 | V31: 0.0083 | W31: -0.0179 | X31: -0.0183 | Y31: -0.0183 | Z31: -0.0188
A32: 1.20 | B32: 0.5986 | C32: 0.6146 | N32: 1.20 | O32: 0.6146 | P32: 0.1393 | S32: 0.0070 | T32: 0.0071 | U32: 0.0071 | V32: 0.0073 | W32: -0.0170 | X32: -0.0174 | Y32: -0.0174 | Z32: -0.0178
A33: 1.25 | B33: 0.6062 | C33: 0.6217 | N33: 1.25 | O33: 0.6217 | P33: 0.1219 | S33: 0.0061 | T33: 0.0062 | U33: 0.0063 | V33: 0.0064 | W33: -0.0161 | X33: -0.0165 | Y33: -0.0165 | Z33: -0.0169
A34: 1.30 | B34: 0.6130 | C34: 0.6280 | N34: 1.30 | O34: 0.6280 | P34: 0.1054 | S34: 0.0053 | T34: 0.0054 | U34: 0.0054 | V34: 0.0055 | W34: -0.0153 | X34: -0.0157 | Y34: -0.0157 | Z34: -0.0161
A35: 1.35 | B35: 0.6189 | C35: 0.6334 | N35: 1.35 | O35: 0.6334 | P35: 0.0897 | S35: 0.0045 | T35: 0.0046 | U35: 0.0046 | V35: 0.0047 | W35: -0.0145 | X35: -0.0148 | Y35: -0.0149 | Z35: -0.0152
A36: 1.40 | B36: 0.6241 | C36: 0.6380 | N36: 1.40 | O36: 0.6380 | P36: 0.0749 | S36: 0.0037 | T36: 0.0038 | U36: 0.0038 | V36: 0.0039 | W36: -0.0137 | X36: -0.0141 | Y36: -0.0141 | Z36: -0.0144
A37: 1.45 | B37: 0.6285 | C37: 0.6418 | N37: 1.45 | O37: 0.6418 | P37: 0.0608 | S37: 0.0030 | T37: 0.0031 | U37: 0.0031 | V37: 0.0032 | W37: -0.0130 | X37: -0.0134 | Y37: -0.0134 | Z37: -0.0137
A38: 1.50 | B38: 0.6322 | C38: 0.6449 | N38: 1.50 | O38: 0.6449 | P38: 0.0474 | S38: 0.0024 | T38: 0.0024 | U38: 0.0024 | V38: 0.0025 | W38: -0.0124 | X38: -0.0127 | Y38: -0.0127 | Z38: -0.0130
A39: 1.55 | B39: 0.6353 | C39: 0.6474 | N39: 1.55 | O39: 0.6474 | P39: 0.0347 | S39: 0.0017 | T39: 0.0018 | U39: 0.0018 | V39: 0.0018 | W39: -0.0117 | X39: -0.0120 | Y39: -0.0120 | Z39: -0.0123
A40: 1.60 | B40: 0.6377 | C40: 0.6492 | N40: 1.60 | O40: 0.6492 | P40: 0.0227 | S40: =$V$4*P40 -> 0.0011 | T40: =$V$4*(P40+S40/2) -> 0.0012 | U40: =$V$4*(P40+T40/2) -> 0.0012 | V40: =$V$4*(P40+U40) -> 0.0012 | W40: =$V$4*(-P40-$E$4) -> -0.0111 | X40: =$V$4*(-P40-$E$4+W40/2) -> -0.0114 | Y40: =$V$4*(-P40-$E$4+X40/2) -> -0.0114 | Z40: =$V$4*(-P40-$E$4+Y40) -> -0.0117
A41: 1.65 | B41: 0.6395 | C41: 0.6503 | N41: 1.65 | O41: 0.6503 | P41: 0.0113 | S41: 0.0006 | T41: 0.0006 | U41: 0.0006 | V41: 0.0006 | W41: -0.0106 | X41: -0.0108 | Y41: -0.0108 | Z41: -0.0111
A42: 1.70 | B42: 0.6408 | C42: 0.6509 | N42: 1.70 | O42: 0.6509 | P42: 0.0005 | S42: 0.0000 | T42: 0.0000 | U42: 0.0000 | V42: 0.0000 | W42: -0.0100 | X42: -0.0103 | Y42: -0.0103 | Z42: -0.0105
A43: 1.75 | B43: 0.6415 | C43: 0.6509 | N43: 1.75 | O43: 0.6509 | P43: -0.0098 | S43: -0.0005 | T43: -0.0005 | U43: -0.0005 | V43: -0.0005 | W43: -0.0095 | X43: -0.0097 | Y43: -0.0098 | Z43: -0.0100
A44: 1.80 | B44: 0.6416 | C44: 0.6504 | N44: 1.80 | O44: 0.6504 | P44: -0.0196 | S44: -0.0010 | T44: -0.0010 | U44: -0.0010 | V44: -0.0010 | W44: -0.0090 | X44: -0.0092 | Y44: -0.0093 | Z44: -0.0095
A45: 1.85 | B45: 0.6413 | C45: 0.6494 | N45: 1.85 | O45: 0.6494 | P45: -0.0288 | S45: -0.0014 | T45: -0.0015 | U45: -0.0015 | V45: -0.0015 | W45: -0.0086 | X45: -0.0088 | Y45: -0.0088 | Z45: -0.0090
A46: 1.90 | B46: 0.6405 | C46: 0.6479 | N46: 1.90 | O46: 0.6479 | P46: -0.0376 | S46: -0.0019 | T46: -0.0019 | U46: -0.0019 | V46: -0.0020 | W46: -0.0081 | X46: -0.0083 | Y46: -0.0083 | Z46: -0.0085
A47: 1.95 | B47: 0.6393 | C47: 0.6460 | N47: 1.95 | O47: 0.6460 | P47: -0.0459 | S47: -0.0023 | T47: -0.0024 | U47: -0.0024 | V47: -0.0024 | W47: -0.0077 | X47: -0.0079 | Y47: -0.0079 | Z47: -0.0081
A48: 2.00 | B48: 0.6376 | C48: 0.6437 | N48: 2.00 | O48: 0.6437 | P48: -0.0538 | S48: -0.0027 | T48: -0.0028 | U48: -0.0028 | V48: -0.0028 | W48: -0.0073 | X48: -0.0075 | Y48: -0.0075 | Z48: -0.0077
A49: 2.05 | B49: 0.6355 | C49: =O49 -> 0.6409 | N49: =A49 -> 2.05 | O49: =O48+(S48+2*T48+2*U48+V48)/6 -> 0.6409 | P49: =P48+(W48+2*X48+2*Y48+Z48)/6 -> -0.0613 | S49: =$V$4*P49 -> -0.0031 | T49: =$V$4*(P49+S49/2) -> -0.0031 | U49: =$V$4*(P49+T49/2) -> -0.0031 | V49: =$V$4*(P49+U49) -> -0.0032 | W49: =$V$4*(-P49-$E$4) -> -0.0069 | X49: =$V$4*(-P49-$E$4+W49/2) -> -0.0071 | Y49: =$V$4*(-P49-$E$4+X49/2) -> -0.0071 | Z49: =$V$4*(-P49-$E$4+Y49) -> -0.0073
A50: 2.10 | B50: 0.6331 | C50: 0.6378 | N50: 2.10 | O50: 0.6378 | P50: -0.0684 | S50: -0.0034 | T50: -0.0035 | U50: -0.0035 | V50: -0.0036 | W50: -0.0066 | X50: -0.0067 | Y50: -0.0067 | Z50: -0.0069
A51: 2.15 | B51: 0.6302 | C51: 0.6342 | N51: 2.15 | O51: 0.6342 | P51: -0.0752 | S51: -0.0038 | T51: -0.0039 | U51: -0.0039 | V51: -0.0040 | W51: -0.0062 | X51: -0.0064 | Y51: -0.0064 | Z51: -0.0066
A52: 2.20 | B52: 0.6270 | C52: 0.6304 | N52: 2.20 | O52: 0.6304 | P52: -0.0816 | S52: -0.0041 | T52: -0.0042 | U52: -0.0042 | V52: -0.0043 | W52: -0.0059 | X52: -0.0061 | Y52: -0.0061 | Z52: -0.0062
A53: 2.25 | B53: 0.6235 | C53: 0.6262 | N53: 2.25 | O53: 0.6262 | P53: -0.0876 | S53: -0.0044 | T53: -0.0045 | U53: -0.0045 | V53: -0.0046 | W53: -0.0056 | X53: -0.0058 | Y53: -0.0058 | Z53: -0.0059
A54: 2.30 | B54: 0.6197 | C54: 0.6217 | N54: 2.30 | O54: 0.6217 | P54: -0.0934 | S54: -0.0047 | T54: -0.0048 | U54: -0.0048 | V54: -0.0049 | W54: -0.0053 | X54: -0.0055 | Y54: -0.0055 | Z54: -0.0056
A55: 2.35 | B55: 0.6156 | C55: 0.6169 | N55: 2.35 | O55: 0.6169 | P55: -0.0989 | S55: -0.0049 | T55: -0.0051 | U55: -0.0051 | V55: -0.0052 | W55: -0.0051 | X55: -0.0052 | Y55: -0.0052 | Z55: -0.0053
A56: 2.40 | B56: 0.6111 | C56: 0.6119 | N56: 2.40 | O56: 0.6119 | P56: -0.1041 | S56: -0.0052 | T56: -0.0053 | U56: -0.0053 | V56: -0.0055 | W56: -0.0048 | X56: -0.0049 | Y56: -0.0049 | Z56: -0.0050
A57: 2.45 | B57: 0.6064 | C57: 0.6065 | N57: 2.45 | O57: 0.6065 | P57: -0.1090 | S57: -0.0054 | T57: -0.0056 | U57: -0.0056 | V57: -0.0057 | W57: -0.0046 | X57: -0.0047 | Y57: -0.0047 | Z57: -0.0048
A58: 2.50 | B58: 0.6015 | C58: 0.6009 | N58: 2.50 | O58: 0.6009 | P58: -0.1136 | S58: -0.0057 | T58: -0.0058 | U58: -0.0058 | V58: -0.0060 | W58: -0.0043 | X58: -0.0044 | Y58: -0.0044 | Z58: -0.0045
A59: 2.55 | B59: 0.5963 | C59: 0.5951 | N59: 2.55 | O59: 0.5951 | P59: -0.1181 | S59: -0.0059 | T59: -0.0061 | U59: -0.0061 | V59: -0.0062 | W59: -0.0041 | X59: -0.0042 | Y59: -0.0042 | Z59: -0.0043
A60: 2.60 | B60: 0.5909 | C60: 0.5891 | N60: 2.60 | O60: 0.5891 | P60: -0.1223 | S60: -0.0061 | T60: -0.0063 | U60: -0.0063 | V60: -0.0064 | W60: -0.0039 | X60: -0.0040 | Y60: -0.0040 | Z60: -0.0041
A61: 2.65 | B61: 0.5852 | C61: 0.5828 | N61: 2.65 | O61: 0.5828 | P61: -0.1263 | S61: -0.0063 | T61: -0.0065 | U61: -0.0065 | V61: -0.0066 | W61: -0.0037 | X61: -0.0038 | Y61: -0.0038 | Z61: -0.0039
A62: 2.70 | B62: 0.5794 | C62: 0.5763 | N62: 2.70 | O62: 0.5763 | P62: -0.1300 | S62: -0.0065 | T62: -0.0067 | U62: -0.0067 | V62: -0.0068 | W62: -0.0035 | X62: -0.0036 | Y62: -0.0036 | Z62: -0.0037
A63: 2.75 | B63: 0.5733 | C63: 0.5696 | N63: 2.75 | O63: 0.5696 | P63: -0.1336 | S63: -0.0067 | T63: -0.0068 | U63: -0.0069 | V63: -0.0070 | W63: -0.0033 | X63: -0.0034 | Y63: -0.0034 | Z63: -0.0035
A64: 2.80 | B64: 0.5670 | C64: 0.5628 | N64: 2.80 | O64: 0.5628 | P64: -0.1370 | S64: -0.0069 | T64: -0.0070 | U64: -0.0070 | V64: -0.0072 | W64: -0.0031 | X64: -0.0032 | Y64: -0.0032 | Z64: -0.0033
A65: 2.85 | B65: 0.5606 | C65: 0.5558 | N65: 2.85 | O65: 0.5558 | P65: -0.1403 | S65: -0.0070 | T65: -0.0072 | U65: -0.0072 | V65: -0.0074 | W65: -0.0030 | X65: -0.0031 | Y65: -0.0031 | Z65: -0.0031
A66: 2.90 | B66: 0.5540 | C66: 0.5486 | N66: 2.90 | O66: 0.5486 | P66: -0.1433 | S66: -0.0072 | T66: -0.0073 | U66: -0.0073 | V66: -0.0075 | W66: -0.0028 | X66: -0.0029 | Y66: -0.0029 | Z66: -0.0030
A67: 2.95 | B67: 0.5472 | C67: 0.5412 | N67: 2.95 | O67: 0.5412 | P67: -0.1462 | S67: -0.0073 | T67: -0.0075 | U67: -0.0075 | V67: -0.0077 | W67: -0.0027 | X67: -0.0028 | Y67: -0.0028 | Z67: -0.0028
A68: 3.00 | B68: 0.5403 | C68: 0.5337 | N68: 3.00 | O68: 0.5337 | P68: -0.1490 | S68: -0.0074 | T68: -0.0076 | U68: -0.0076 | V68: -0.0078 | W68: -0.0026 | X68: -0.0026 | Y68: -0.0026 | Z68: -0.0027
A69: 3.05 | B69: 0.5332 | C69: 0.5261 | N69: 3.05 | O69: 0.5261 | P69: -0.1516 | S69: -0.0076 | T69: -0.0078 | U69: -0.0078 | V69: -0.0080 | W69: -0.0024 | X69: -0.0025 | Y69: -0.0025 | Z69: -0.0025
A70: 3.10 | B70: 0.5259 | C70: 0.5183 | N70: 3.10 | O70: 0.5183 | P70: -0.1541 | S70: -0.0077 | T70: -0.0079 | U70: -0.0079 | V70: -0.0081 | W70: -0.0023 | X70: -0.0024 | Y70: -0.0024 | Z70: -0.0024
A71: 3.15 | B71: 0.5186 | C71: 0.5104 | N71: 3.15 | O71: 0.5104 | P71: -0.1564 | S71: -0.0078 | T71: -0.0080 | U71: -0.0080 | V71: -0.0082 | W71: -0.0022 | X71: -0.0022 | Y71: -0.0022 | Z71: -0.0023
A72: 3.20 | B72: 0.5111 | C72: 0.5024 | N72: 3.20 | O72: 0.5024 | P72: -0.1587 | S72: -0.0079 | T72: -0.0081 | U72: -0.0081 | V72: -0.0083 | W72: -0.0021 | X72: -0.0021 | Y72: -0.0021 | Z72: -0.0022
A73: 3.25 | B73: =(1+$E$4)*(1-EXP(-A73))-$E$4*A73 -> 0.5035 | C73: 0.4943 | N73: 3.25 | O73: 0.4943 | P73: -0.1608 | S73: -0.0080 | T73: -0.0082 | U73: -0.0082 | V73: -0.0085 | W73: -0.0020 | X73: -0.0020 | Y73: -0.0020 | Z73: -0.0021
A74: 3.30 | B74: 0.4957 | C74: 0.4860 | N74: 3.30 | O74: 0.4860 | P74: -0.1628 | S74: -0.0081 | T74: -0.0083 | U74: -0.0083 | V74: -0.0086 | W74: -0.0019 | X74: -0.0019 | Y74: -0.0019 | Z74: -0.0020
A75: 3.35 | B75: 0.4879 | C75: 0.4777 | N75: 3.35 | O75: 0.4777 | P75: -0.1647 | S75: -0.0082 | T75: -0.0084 | U75: -0.0084 | V75: -0.0087 | W75: -0.0018 | X75: -0.0018 | Y75: -0.0018 | Z75: -0.0019
A76: 3.40 | B76: 0.4800 | C76: 0.4692 | N76: 3.40 | O76: 0.4692 | P76: -0.1665 | S76: -0.0083 | T76: -0.0085 | U76: -0.0085 | V76: -0.0088 | W76: -0.0017 | X76: -0.0017 | Y76: -0.0017 | Z76: -0.0018
A77: 3.45 | B77: 0.4719 | C77: 0.4607 | N77: 3.45 | O77: 0.4607 | P77: -0.1682 | S77: -0.0084 | T77: -0.0086 | U77: -0.0086 | V77: -0.0088 | W77: -0.0016 | X77: -0.0016 | Y77: -0.0016 | Z77: -0.0017
A78: 3.50 | B78: 0.4638 | C78: 0.4521 | N78: 3.50 | O78: 0.4521 | P78: -0.1699 | S78: -0.0085 | T78: -0.0087 | U78: -0.0087 | V78: -0.0089 | W78: -0.0015 | X78: -0.0015 | Y78: -0.0015 | Z78: -0.0016
A79: 3.55 | B79: 0.4555 | C79: 0.4434 | N79: 3.55 | O79: 0.4434 | P79: -0.1714 | S79: -0.0086 | T79: -0.0088 | U79: -0.0088 | V79: -0.0090 | W79: -0.0014 | X79: -0.0015 | Y79: -0.0015 | Z79: -0.0015
A80: 3.60 | B80: 0.4472 | C80: 0.4346 | N80: 3.60 | O80: 0.4346 | P80: -0.1729 | S80: -0.0086 | T80: -0.0089 | U80: -0.0089 | V80: -0.0091 | W80: -0.0014 | X80: -0.0014 | Y80: -0.0014 | Z80: -0.0014
A81: 3.65 | B81: 0.4388 | C81: 0.4257 | N81: 3.65 | O81: 0.4257 | P81: -0.1743 | S81: -0.0087 | T81: -0.0089 | U81: -0.0089 | V81: -0.0092 | W81: -0.0013 | X81: -0.0013 | Y81: -0.0013 | Z81: -0.0014
A82: 3.70 | B82: 0.4303 | C82: 0.4168 | N82: 3.70 | O82: 0.4168 | P82: -0.1756 | S82: -0.0088 | T82: -0.0090 | U82: -0.0090 | V82: -0.0092 | W82: -0.0012 | X82: -0.0013 | Y82: -0.0013 | Z82: -0.0013
A83: 3.75 | B83: 0.4218 | C83: 0.4078 | N83: 3.75 | O83: 0.4078 | P83: -0.1768 | S83: -0.0088 | T83: -0.0091 | U83: -0.0091 | V83: -0.0093 | W83: -0.0012 | X83: -0.0012 | Y83: -0.0012 | Z83: -0.0012
A84: 3.80 | B84: 0.4132 | C84: 0.3987 | N84: 3.80 | O84: 0.3987 | P84: -0.1780 | S84: -0.0089 | T84: -0.0091 | U84: -0.0091 | V84: -0.0094 | W84: -0.0011 | X84: -0.0011 | Y84: -0.0011 | Z84: -0.0012
A85: 3.85 | B85: 0.4045 | C85: 0.3896 | N85: 3.85 | O85: 0.3896 | P85: -0.1791 | S85: -0.0090 | T85: -0.0092 | U85: -0.0092 | V85: -0.0094 | W85: -0.0010 | X85: -0.0011 | Y85: -0.0011 | Z85: -0.0011
A86: 3.90 | B86: 0.3957 | C86: 0.3804 | N86: 3.90 | O86: 0.3804 | P86: -0.1802 | S86: -0.0090 | T86: -0.0092 | U86: -0.0092 | V86: -0.0095 | W86: -0.0010 | X86: -0.0010 | Y86: -0.0010 | Z86: -0.0010
A87: 3.95 | B87: 0.3869 | C87: 0.3711 | N87: 3.95 | O87: 0.3711 | P87: -0.1812 | S87: -0.0091 | T87: -0.0093 | U87: -0.0093 | V87: -0.0095 | W87: -0.0009 | X87: -0.0010 | Y87: -0.0010 | Z87: -0.0010
A88: 4.00 | B88: 0.3780 | C88: 0.3619 | N88: 4.00 | O88: 0.3619 | P88: -0.1822 | S88: -0.0091 | T88: -0.0093 | U88: -0.0093 | V88: -0.0096 | W88: -0.0009 | X88: -0.0009 | Y88: -0.0009 | Z88: -0.0009
A89: 4.05 | B89: 0.3691 | C89: 0.3525 | N89: 4.05 | O89: 0.3525 | P89: -0.1831 | S89: -0.0092 | T89: -0.0094 | U89: -0.0094 | V89: -0.0096 | W89: -0.0008 | X89: -0.0009 | Y89: -0.0009 | Z89: -0.0009
A90: 4.10 | B90: 0.3601 | C90: 0.3431 | N90: 4.10 | O90: 0.3431 | P90: -0.1840 | S90: -0.0092 | T90: -0.0094 | U90: -0.0094 | V90: -0.0097 | W90: -0.0008 | X90: -0.0008 | Y90: -0.0008 | Z90: -0.0008
A91: 4.15 | B91: 0.3511 | C91: 0.3337 | N91: 4.15 | O91: 0.3337 | P91: -0.1848 | S91: -0.0092 | T91: -0.0095 | U91: -0.0095 | V91: -0.0097 | W91: -0.0008 | X91: -0.0008 | Y91: -0.0008 | Z91: -0.0008
A92: 4.20 | B92: 0.3420 | C92: 0.3242 | N92: 4.20 | O92: 0.3242 | P92: -0.1856 | S92: -0.0093 | T92: -0.0095 | U92: -0.0095 | V92: -0.0098 | W92: -0.0007 | X92: -0.0007 | Y92: -0.0007 | Z92: -0.0008
A93: 4.25 | B93: 0.3329 | C93: 0.3147 | N93: 4.25 | O93: 0.3147 | P93: -0.1863 | S93: -0.0093 | T93: -0.0095 | U93: -0.0096 | V93: -0.0098 | W93: -0.0007 | X93: -0.0007 | Y93: -0.0007 | Z93: -0.0007
A94: 4.30 | B94: 0.3237 | C94: 0.3052 | N94: 4.30 | O94: 0.3052 | P94: -0.1870 | S94: -0.0094 | T94: -0.0096 | U94: -0.0096 | V94: -0.0098 | W94: -0.0006 | X94: -0.0007 | Y94: -0.0007 | Z94: -0.0007
A95: 4.35 | B95: 0.3145 | C95: 0.2956 | N95: 4.35 | O95: 0.2956 | P95: -0.1877 | S95: -0.0094 | T95: -0.0096 | U95: -0.0096 | V95: -0.0099 | W95: -0.0006 | X95: -0.0006 | Y95: -0.0006 | Z95: -0.0006
A96: 4.40 | B96: 0.3053 | C96: 0.2859 | N96: 4.40 | O96: 0.2859 | P96: -0.1883 | S96: -0.0094 | T96: -0.0097 | U96: -0.0097 | V96: -0.0099 | W96: -0.0006 | X96: -0.0006 | Y96: -0.0006 | Z96: -0.0006
A97: 4.45 | B97: 0.2960 | C97: 0.2763 | N97: 4.45 | O97: 0.2763 | P97: -0.1889 | S97: -0.0094 | T97: -0.0097 | U97: -0.0097 | V97: -0.0099 | W97: -0.0006 | X97: -0.0006 | Y97: -0.0006 | Z97: -0.0006
A98: 4.50 | B98: 0.2867 | C98: 0.2666 | N98: 4.50 | O98: 0.2666 | P98: -0.1895 | S98: -0.0095 | T98: -0.0097 | U98: -0.0097 | V98: -0.0100 | W98: -0.0005 | X98: -0.0005 | Y98: -0.0005 | Z98: -0.0006
A99: 4.55 | B99: 0.2773 | C99: 0.2569 | N99: 4.55 | O99: 0.2569 | P99: -0.1900 | S99: -0.0095 | T99: -0.0097 | U99: -0.0097 | V99: -0.0100 | W99: -0.0005 | X99: -0.0005 | Y99: -0.0005 | Z99: -0.0005
A100: 4.60 | B100: 0.2679 | C100: 0.2471 | N100: 4.60 | O100: 0.2471 | P100: -0.1905 | S100: -0.0095 | T100: -0.0098 | U100: -0.0098 | V100: -0.0100 | W100: -0.0005 | X100: -0.0005 | Y100: -0.0005 | Z100: -0.0005
A101: 4.65 | B101: 0.2585 | C101: 0.2374 | N101: 4.65 | O101: 0.2374 | P101: -0.1910 | S101: -0.0096 | T101: -0.0098 | U101: -0.0098 | V101: -0.0100 | W101: -0.0004 | X101: -0.0005 | Y101: -0.0005 | Z101: -0.0005
A102: 4.70 | B102: 0.2491 | C102: 0.2276 | N102: 4.70 | O102: 0.2276 | P102: -0.1915 | S102: -0.0096 | T102: -0.0098 | U102: -0.0098 | V102: -0.0101 | W102: -0.0004 | X102: -0.0004 | Y102: -0.0004 | Z102: -0.0004
A103: 4.75 | B103: 0.2396 | C103: 0.2178 | N103: 4.75 | O103: 0.2178 | P103: -0.1919 | S103: -0.0096 | T103: -0.0098 | U103: -0.0098 | V103: -0.0101 | W103: -0.0004 | X103: -0.0004 | Y103: -0.0004 | Z103: -0.0004
A104: 4.80 | B104: 0.2301 | C104: 0.2079 | N104: 4.80 | O104: 0.2079 | P104: -0.1923 | S104: -0.0096 | T104: -0.0099 | U104: -0.0099 | V104: -0.0101 | W104: -0.0004 | X104: -0.0004 | Y104: -0.0004 | Z104: -0.0004
A105: 4.85 | B105: 0.2206 | C105: 0.1981 | N105: 4.85 | O105: 0.1981 | P105: -0.1927 | S105: -0.0096 | T105: -0.0099 | U105: -0.0099 | V105: -0.0101 | W105: -0.0004 | X105: -0.0004 | Y105: -0.0004 | Z105: -0.0004
A106: 4.90 | B106: 0.2111 | C106: 0.1882 | N106: 4.90 | O106: 0.1882 | P106: -0.1931 | S106: -0.0097 | T106: -0.0099 | U106: -0.0099 | V106: -0.0101 | W106: -0.0003 | X106: -0.0004 | Y106: -0.0004 | Z106: -0.0004
A107: 4.95 | B107: 0.2015 | C107: =O107 -> 0.1783 | N107: 4.95 | O107: 0.1783 | P107: -0.1934 | S107: -0.0097 | T107: -0.0099 | U107: -0.0099 | V107: -0.0102 | W107: -0.0003 | X107: -0.0003 | Y107: -0.0003 | Z107: -0.0003
A108: 5.00 | B108: 0.1919 | C108: 0.1684 | N108: 5.00 | O108: 0.1684 | P108: -0.1938 | S108: -0.0097 | T108: -0.0099 | U108: -0.0099 | V108: -0.0102 | W108: -0.0003 | X108: -0.0003 | Y108: -0.0003 | Z108: -0.0003

Sheet Activity 4
A1: Two-point boundary value problem
D4: 𝜀 = | E4: =Z4/100-1 -> 0.5 | Z4: 150
B6: Exact | C6: 1st-order | D6: 2nd-oder | Q6: Perturbation functions
A7: x | B7: y(x) | C7: y(x) | D7: y(x) | P7: x | Q7: yo(x) | R7: y1(x) | S7: y2(x)
A8: 0.0000 | B8: =(-EXP(-$E$4*A8)*(COS(A8)+EXP($E$4*PI()/2)*SIN(A8))+1)/(1+$E$4^2) -> 0.0000 | C8: =Q8+$E$4*R8 -> 0.0000 | D8: =Q8+$E$4*R8+$E$4^2*S8 -> 0.0000 | P8: =A8 -> 0.0000 | Q8: =-COS(P8)-SIN(P8)+1 -> 0.0000 | R8: =-(PI()/2)*SIN(P8)+P8*(COS(P8)+SIN(P8)) -> 0.0000 | S8: =COS(P8)+(1-PI()^2/8)*SIN(P8)+(PI()/2)*P8*SIN(P8)-(P8^2/2)*(COS(P8)+SIN(P8))-1 -> 0.0000
A9: =A8+PI()/100 -> 0.0314 | B9: =(-EXP(-$E$4*A9)*(COS(A9)+EXP($E$4*PI()/2)*SIN(A9))+1)/(1+$E$4^2) -> -0.0414 | C9: =Q9+$E$4*R9 -> -0.0394 | D9: =Q9+$E$4*R9+$E$4^2*S9 -> -0.0411 | P9: =A9 -> 0.0314 | Q9: =-COS(P9)-SIN(P9)+1 -> -0.0309 | R9: =-(PI()/2)*SIN(P9)+P9*(COS(P9)+SIN(P9)) -> -0.0170 | S9: =COS(P9)+(1-PI()^2/8)*SIN(P9)+(PI()/2)*P9*SIN(P9)-(P9^2/2)*(COS(P9)+SIN(P9))-1 -> -0.0068
A10: =A9+PI()/100 -> 0.0628 | B10: -0.0805 | C10: -0.0768 | D10: -0.0799 | P10: =A10 -> 0.0628 | Q10: =-COS(P10)-SIN(P10)+1 -> -0.0608 | R10: =-(PI()/2)*SIN(P10)+P10*(COS(P10)+SIN(P10)) -> -0.0320 | S10: =COS(P10)+(1-PI()^2/8)*SIN(P10)+(PI()/2)*P10*SIN(P10)-(P10^2/2)*(COS(P10)+SIN(P10))-1 -> -0.0125
A11: 0.0942 | B11: -0.1173 | C11: -0.1122 | D11: -0.1166 | P11: 0.0942 | Q11: -0.0897 | R11: -0.0451 | S11: -0.0173
A12: 0.1257 | B12: -0.1519 | C12: -0.1457 | D12: -0.1510 | P12: 0.1257 | Q12: -0.1174 | R12: -0.0565 | S12: -0.0213
A13: 0.1571 | B13: -0.1842 | C13: -0.1771 | D13: -0.1832 | P13: 0.1571 | Q13: -0.1441 | R13: -0.0660 | S13: -0.0244
A14: 0.1885 | B14: -0.2144 | C14: -0.2066 | D14: -0.2133 | P14: 0.1885 | Q14: -0.1697 | R14: -0.0739 | S14: -0.0268
A15: 0.2199 | B15: -0.2423 | C15: -0.2341 | D15: -0.2412 | P15: 0.2199 | Q15: -0.1941 | R15: -0.0801 | S15: -0.0286
A16: 0.2513 | B16: -0.2682 | C16: -0.2596 | D16: -0.2671 | P16: 0.2513 | Q16: -0.2173 | R16: -0.0847 | S16: -0.0298
A17: 0.2827 | B17: -0.2919 | C17: -0.2832 | D17: -0.2908 | P17: 0.2827 | Q17: -0.2393 | R17: -0.0878 | S17: -0.0305
A18: 0.3142 | B18: -0.3136 | C18: -0.3048 | D18: -0.3126 | P18: 0.3142 | Q18: -0.2601 | R18: -0.0895 | S18: -0.0308
A19: 0.3456 | B19: -0.3333 | C19: -0.3246 | D19: -0.3323 | P19: 0.3456 | Q19: -0.2796 | R19: -0.0899 | S19: -0.0308
A20: 0.3770 | B20: -0.3510 | C20: -0.3424 | D20: -0.3500 | P20: 0.3770 | Q20: -0.2979 | R20: -0.0890 | S20: -0.0305
A21: 0.4084 | B21: -0.3667 | C21: -0.3583 | D21: -0.3658 | P21: 0.4084 | Q21: -0.3149 | R21: -0.0868 | S21: -0.0299
A22: 0.4398 | B22: -0.3806 | C22: -0.3724 | D22: -0.3797 | P22: 0.4398 | Q22: -0.3306 | R22: -0.0836 | S22: -0.0292
A23: 0.4712 | B23: -0.3925 | C23: -0.3847 | D23: -0.3917 | P23: 0.4712 | Q23: -0.3450 | R23: -0.0793 | S23: -0.0284
A24: 0.5027 | B24: -0.4027 | C24: -0.3951 | D24: -0.4020 | P24: 0.5027 | Q24: -0.3581 | R24: -0.0741 | S24: -0.0275
A25: 0.5341 | B25: -0.4111 | C25: -0.4038 | D25: -0.4104 | P25: 0.5341 | Q25: -0.3698 | R25: -0.0680 | S25: -0.0265
A26: 0.5655 | B26: -0.4177 | C26: -0.4108 | D26: -0.4172 | P26: 0.5655 | Q26: -0.3802 | R26: -0.0612 | S26: -0.0256
A27: 0.5969 | B27: -0.4227 | C27: -0.4160 | D27: -0.4222 | P27: 0.5969 | Q27: -0.3892 | R27: -0.0537 | S27: -0.0247
A28: 0.6283 | B28: -0.4260 | C28: -0.4196 | D28: -0.4256 | P28: 0.6283 | Q28: -0.3968 | R28: -0.0457 | S28: -0.0239
A29: 0.6597 | B29: -0.4278 | C29: -0.4216 | D29: -0.4274 | P29: 0.6597 | Q29: -0.4031 | R29: -0.0371 | S29: -0.0233
A30: 0.6912 | B30: -0.4279 | C30: -0.4220 | D30: -0.4277 | P30: 0.6912 | Q30: -0.4079 | R30: -0.0282 | S30: -0.0227
A31: 0.7226 | B31: -0.4266 | C31: -0.4209 | D31: -0.4265 | P31: 0.7226 | Q31: -0.4114 | R31: -0.0189 | S31: -0.0223
A32: 0.7540 | B32: -0.4239 | C32: -0.4183 | D32: -0.4238 | P32: 0.7540 | Q32: -0.4135 | R32: -0.0095 | S32: -0.0220
A33: 0.7854 | B33: -0.4197 | C33: -0.4142 | D33: -0.4197 | P33: 0.7854 | Q33: -0.4142 | R33: 0.0000 | S33: -0.0220
A34: 0.8168 | B34: -0.4142 | C34: -0.4088 | D34: -0.4143 | P34: 0.8168 | Q34: -0.4135 | R34: 0.0095 | S34: -0.0220
A35: 0.8482 | B35: -0.4074 | C35: -0.4020 | D35: -0.4075 | P35: 0.8482 | Q35: -0.4114 | R35: 0.0189 | S35: -0.0223
A36: 0.8796 | B36: -0.3993 | C36: -0.3939 | D36: -0.3995 | P36: 0.8796 | Q36: -0.4079 | R36: 0.0282 | S36: -0.0227
A37: 0.9111 | B37: -0.3901 | C37: -0.3845 | D37: -0.3903 | P37: 0.9111 | Q37: -0.4031 | R37: 0.0371 | S37: -0.0233
A38: 0.9425 | B38: -0.3796 | C38: -0.3740 | D38: -0.3800 | P38: 0.9425 | Q38: -0.3968 | R38: 0.0457 | S38: -0.0239
A39: 0.9739 | B39: -0.3681 | C39: -0.3623 | D39: -0.3685 | P39: 0.9739 | Q39: -0.3892 | R39: 0.0537 | S39: -0.0247
A40: 1.0053 | B40: -0.3555 | C40: -0.3495 | D40: -0.3559 | P40: 1.0053 | Q40: -0.3802 | R40: 0.0612 | S40: -0.0256
A41: 1.0367 | B41: -0.3419 | C41: -0.3358 | D41: -0.3424 | P41: 1.0367 | Q41: -0.3698 | R41: 0.0680 | S41: -0.0265
A42: 1.0681 | B42: -0.3273 | C42: -0.3210 | D42: -0.3279 | P42: 1.0681 | Q42: -0.3581 | R42: 0.0741 | S42: -0.0275
A43: 1.0996 | B43: -0.3118 | C43: -0.3053 | D43: -0.3124 | P43: 1.0996 | Q43: -0.3450 | R43: 0.0793 | S43: -0.0284
A44: 1.1310 | B44: -0.2954 | C44: -0.2888 | D44: -0.2961 | P44: 1.1310 | Q44: -0.3306 | R44: 0.0836 | S44: -0.0292
A45: 1.1624 | B45: -0.2782 | C45: -0.2715 | D45: -0.2790 | P45: 1.1624 | Q45: -0.3149 | R45: 0.0868 | S45: -0.0299
A46: 1.1938 | B46: -0.2602 | C46: -0.2534 | D46: -0.2610 | P46: 1.1938 | Q46: -0.2979 | R46: 0.0890 | S46: -0.0305
A47: 1.2252 | B47: -0.2415 | C47: -0.2347 | D47: -0.2424 | P47: 1.2252 | Q47: -0.2796 | R47: 0.0899 | S47: -0.0308
A48: 1.2566 | B48: -0.2221 | C48: -0.2153 | D48: -0.2230 | P48: 1.2566 | Q48: -0.2601 | R48: 0.0895 | S48: -0.0308
A49: 1.2881 | B49: -0.2021 | C49: -0.1954 | D49: -0.2030 | P49: 1.2881 | Q49: -0.2393 | R49: 0.0878 | S49: -0.0305
A50: 1.3195 | B50: -0.1815 | C50: -0.1749 | D50: -0.1824 | P50: 1.3195 | Q50: -0.2173 | R50: 0.0847 | S50: -0.0298
A51: 1.3509 | B51: -0.1603 | C51: -0.1540 | D51: -0.1612 | P51: 1.3509 | Q51: -0.1941 | R51: 0.0801 | S51: -0.0286
A52: 1.3823 | B52: -0.1386 | C52: -0.1327 | D52: -0.1394 | P52: 1.3823 | Q52: -0.1697 | R52: 0.0739 | S52: -0.0268
A53: 1.4137 | B53: -0.1164 | C53: -0.1111 | D53: -0.1172 | P53: 1.4137 | Q53: -0.1441 | R53: 0.0660 | S53: -0.0244
A54: 1.4451 | B54: -0.0938 | C54: -0.0892 | D54: -0.0945 | P54: 1.4451 | Q54: -0.1174 | R54: 0.0565 | S54: -0.0213
A55: 1.4765 | B55: -0.0709 | C55: -0.0671 | D55: -0.0714 | P55: 1.4765 | Q55: -0.0897 | R55: 0.0451 | S55: -0.0173
A56: 1.5080 | B56: -0.0475 | C56: -0.0448 | D56: -0.0480 | P56: 1.5080 | Q56: -0.0608 | R56: 0.0320 | S56: -0.0125
A57: 1.5394 | B57: -0.0239 | C57: -0.0224 | D57: -0.0241 | P57: 1.5394 | Q57: -0.0309 | R57: 0.0170 | S57: -0.0068
A58: 1.5708 | B58: 0.0000 | C58: 0.0000 | D58: 0.0000 | P58: 1.5708 | Q58: 0.0000 | R58: 0.0000 | S58: 0.0000
